fUSD/lending_fUSD_20240418
["ID","MTS","AMOUNT","RATE_DAILY","PERIOD"]
[322846668,1713398449930,203.0,0.000283,120]
[322846700,1713399032021,-235.08,0.00017057,2]
[322846701,1713399032031,-74.37900458,0.0001706,2]
[322846716,1713399038126,-635.451628,0.0001706,2]
[322846721,1713399040252,-288.16936742,0.0001706,2]
[322846722,1713399040262,-309.459,0.00018821,2]
[322846723,1713399040273,-526.0,0.00018877,2]
[322846724,1713399040282,-1260.23,0.00018918,2]
[322846725,1713399040292,-23900.0,0.00018921,2]
[322846726,1713399040302,-650.08,0.00018963,2]
[322846727,1713399040311,-349.92,0.00019008,2]
[322846728,1713399040321,-1000.0,0.00019012,2]
[322846729,1713399040331,-1000.0,0.00019249,2]
[322846730,1713399040343,-235.08,0.00019321,2]
[322846731,1713399040353,-1203.47077465,0.000194,2]
[322846732,1713399040364,-2143.52922535,0.000194,2]
[322846733,1713399040374,-355.0,0.00019576,2]
[322846734,1713399040384,-319.326,0.00019576,2]
[322846735,1713399040394,-23275.15733285,0.000198,2]
[322846744,1713399042944,-977.79543901,0.000198,2]
[322846745,1713399043127,-13751.24020394,0.000198,2]
[322846746,1713399043136,-302.379778,0.00019838,2]
[322846747,1713399043146,-200.0,0.00019839,2]
[322846748,1713399043155,-200.0,0.00019839,2]
[322846749,1713399043164,-1000.0,0.00019839,2]
[322846750,1713399043173,-1000.0,0.00019839,2]
[322846751,1713399043183,-500.0,0.00019839,2]
[322846752,1713399043193,-500.0,0.00019839,2]
[322846753,1713399043203,-568.37578491,0.00019894,2]
[322846754,1713399043212,-15084.9135228,0.00019894,2]
[322846755,1713399043222,-312.27117888,0.00019898,2]
[322846756,1713399043231,-2763.50663429,0.000199,2]
[322846757,1713399043241,-6959.996,0.000199,2]
[322846758,1713399043250,-154.26059327,0.000199,2]
[322846759,1713399043259,-2763.50663421,0.00019991,2]
[322846760,1713399043271,-9200.8733193,0.00019992,2]
[322846761,1713399043280,-26592.2445829,0.00019992,2]
[322846762,1713399043289,-2665.6067075,0.00019992,2]
[322846763,1713399043298,-4620.1817522,0.00019992,2]
[322846764,1713399043307,-7009.3389003,0.00019992,2]
[322846765,1713399043316,-245.5450202,0.00019992,2]
[322846766,1713399043325,-28967.9580833,0.00019994,2]
[322846767,1713399043335,-3735.351971,0.00019994,2]
[322846768,1713399043346,-155.0,0.00019996,2]
[322846769,1713399043355,-1000.0,0.00019997,2]
[322846770,1713399043364,-6132.7601329,0.00019997,2]
[322846771,1713399043373,-1000.0,0.00019997,2]
[322846772,1713399043382,-250.27863719,0.00019998,2]
[322846773,1713399043391,-73504.04745018,0.00019998,2]
[322846774,1713399043403,-1884.50933853,0.00019998,2]
[322846784,1713399046234,-493.706,0.00019998,2]
[322846785,1713399046449,-264.73,0.00019998,2]
[322846788,1713399414254,-162.82012971,0.00016999,2]
[322846789,1713399414277,-1204.0,0.00016999,2]
[322846790,1713399414300,-1550.0,0.00017,2]
[322846791,1713399558532,4285.8358825,0.000283,120]
[322846792,1713399576746,191.48528093,0.0002,30]
[322846793,1713399626432,503.35239813,0.0002,14]
[322846814,1713400198626,219.4,0.00016684,2]
[322846826,1713400232156,-191.76457071,0.00017332,2]
[322846827,1713400232167,-191.76457071,0.00017334,2]
[322846828,1713400232177,-191.76457071,0.00017347,2]
[322846829,1713400232187,-191.76457071,0.00017354,2]
[322846830,1713400232196,-191.76457071,0.00017356,2]
[322846831,1713400232205,-191.76457071,0.00017358,2]
[322846832,1713400232215,-191.76457071,0.0001737,2]
[322846833,1713400232225,-191.76457071,0.00017388,2]
[322846834,1713400232234,-191.76457071,0.00017391,2]
[322846835,1713400232243,-150.0,0.00018528,2]
[322846836,1713400232252,-3788.13238376,0.00018529,2]
[322846837,1713400232263,-351.69048587,0.00018529,2]
[322846838,1713400232294,-19760.17713037,0.00018529,2]
[322846839,1713400232304,-916.26,0.00018542,2]
[322846840,1713400232312,-520.07,0.00018652,2]
[322846841,1713400232322,-219.4,0.00018948,2]
[322846842,1713400232331,-1600.0,0.00019,2]
[322846843,1713400232340,-479.93,0.00019164,2]
[322846844,1713400232349,-3495.0,0.00019178,2]
[322846845,1713400232358,-1000.0,0.00019515,2]
[322846846,1713400232367,-212.937177,0.00019726,2]
[322846847,1713400232376,-1000.0,0.00019798,2]
[322846848,1713400232385,-279.98463623,0.00019798,2]
[322846849,1713400232394,-154.98194738,0.00019798,2]
[322846850,1713400232403,-955.84299116,0.00019798,2]
[322846852,1713400232415,-1000.0,0.00019799,2]
[322846853,1713400232424,-28994.790916,0.000198,2]
[322846854,1713400232434,-822.8,0.000198,2]
[322846855,1713400232443,-200.0,0.00019839,2]
[322846856,1713400232453,-1000.0,0.00019839,2]
[322846857,1713400232462,-500.0,0.00019839,2]
[322846858,1713400232471,-200.22290976,0.00019894,2]
[322846859,1713400232480,-224958.4673,0.00019894,2]
[322846860,1713400232490,-189.49615626,0.00019898,2]
[322846861,1713400232499,-13619.0,0.000199,2]
[322846862,1713400232509,-2630.53611661,0.000199,2]
[322846863,1713400232519,-154.45931991,0.000199,2]
[322846864,1713400232528,-955.84299111,0.0001992,2]
[322846865,1713400232537,-154.98194736,0.00019982,2]
[322846866,1713400232546,-2630.53611656,0.00019991,2]
[322846867,1713400232555,-204.62085036,0.00019995,2]
[322846868,1713400232563,-879.1284918,0.00019995,2]
[322846869,1713400232573,-6663.1346796,0.00019995,2]
[322846870,1713400232582,-12268.55024936,0.00019995,2]
[322846871,1713400232595,-322.91174239,0.00019995,2]
[322846879,1713400238646,-384.24727282,0.00019995,2]
[322846880,1713400238751,-2331.08922563,0.00019995,2]
[322846942,1713400240454,-2560.0,0.00019995,2]
[322846999,1713400243144,-5233.2608038,0.00019995,2]
[322847001,1713400243153,-1483.8070403,0.00019995,2]
[322847003,1713400243162,-5234.708779,0.00019995,2]
[322847004,1713400243172,-2612.4462776,0.00019995,2]
[322847006,1713400243181,-4489.1954193,0.00019995,2]
[322847009,1713400243193,-1114.2104487,0.00019995,2]
[322847011,1713400243202,-32.07009151,0.00019997,2]
[322847012,1713400243456,-758.32918042,0.00019997,2]
[322847078,1713400246457,-1221.72,0.00019997,2]
[322847079,1713400246469,-456.80005735,0.00019997,2]
[322847106,1713400753989,151.0,0.00024933,120]
[322847109,1713400911853,500.0,0.0002799,60]
[322847184,1713400974167,361.32743443,0.0002799,60]
[322847242,1713401095733,1550.0,0.00017,2]
[322847402,1713401282372,151.0,0.00024922,120]
[322847419,1713401432675,-197.46,0.0001709,2]
[322847420,1713401432684,-583.94,0.00018874,2]
[322847421,1713401432694,-565.38709982,0.00018923,2]
[322847422,1713401432705,-174.09290018,0.00018923,2]
[322847423,1713401432715,-500.0,0.00018947,2]
[322847424,1713401432724,-105.44710006,0.00018976,2]
[322847425,1713401432768,-310.61289994,0.00018976,2]
[322847426,1713401432777,-260.57654147,0.00019,2]
[322847427,1713401432820,-254.8767832,0.00019,2]
[322847428,1713401432854,-1084.54667533,0.00019,2]
[322847429,1713401432863,-1564.10873969,0.00019008,2]
[322847466,1713401438302,-1233.13266644,0.00019008,2]
[322847467,1713401438313,-4190.85538286,0.00019008,2]
[322847468,1713401438538,-16911.90321101,0.00019008,2]
[322847469,1713401438548,-164.21,0.00019016,2]
[322847470,1713401438558,-1000.0,0.00019035,2]
[322847471,1713401438567,-1000.0,0.00019036,2]
[322847472,1713401438577,-197.46,0.00019354,2]
[322847473,1713401438586,-601.0,0.000194,2]
[322847474,1713401438597,-1000.0,0.00019503,2]
[322847475,1713401438606,-65.35116834,0.00019652,2]
[322847484,1713401438688,-934.64883166,0.00019652,2]
[322847486,1713401438698,-339.6731,0.00019794,2]
[322847487,1713401438707,-200.0,0.00019839,2]
[322847488,1713401438716,-3.9398125,0.00019839,2]
[322847489,1713401438727,-996.0601875,0.00019839,2]
[322847490,1713401438736,-154.98194736,0.00019896,2]
[322847491,1713401438745,-838.18983493,0.00019897,2]
[322847492,1713401438755,-524.91677706,0.00019897,2]
[322847497,1713401441179,-1050.0,0.00019897,2]
[322847498,1713401441455,-466.67019959,0.00019897,2]
[322847499,1713401441466,-1789.2644113,0.00019897,2]
[322847500,1713401441540,-3023.52049999,0.00019897,2]
[322847522,1713401443690,-624.67782042,0.00019897,2]
[322847523,1713401443701,-1914.552,0.00019897,2]
[322847524,1713401443712,-1493.47000008,0.00019897,2]
[322847525,1713401443790,-604.0,0.00019897,2]
[322847527,1713401443802,-2627.44264877,0.00019897,2]
[322847529,1713401443811,-176.35323577,0.000199,2]
[322847530,1713401443820,-229.90270459,0.000199,2]
[322847531,1713401443878,-1962.21072595,0.000199,2]
[322847532,1713401443887,-277.64,0.00019939,2]
[322847533,1713401443897,-271.058,0.00019939,2]
[322847534,1713401443906,-2192.11343046,0.00019991,2]
[322847535,1713401443915,-1000.0,0.00019993,2]
[322847536,1713401443924,-2059.6273222,0.00019993,2]
[322847537,1713401443934,-523.35052765,0.00019993,2]
[322847538,1713401446378,-532.10173795,0.00019993,2]
[322847539,1713401446387,-236.68069249,0.00019993,2]
[322847540,1713401446397,-5257.88647589,0.00019994,2]
[322847541,1713401446437,-3345.80624858,0.00019994,2]
[322847542,1713401446613,-269.25240571,0.00019994,2]
[322847546,1713401515960,17313.77987029,0.0001539,2]
[322847547,1713401515986,3811.62376063,0.0001539,2]
[322847548,1713401708150,151.0,0.00024781,120]
[322847550,1713401953822,151.0,0.00024927,120]
[322847551,1713402530577,151.0,0.00024785,120]
[322847565,1713402631568,-177.71,0.00017005,2]
[322847566,1713402631578,-160.76689987,0.00018858,2]
[322847567,1713402631589,-1311.52310013,0.00018858,2]
[322847568,1713402631664,-397.08384421,0.00018858,2]
[322847569,1713402631706,-123.91716834,0.00018858,2]
[322847570,1713402631716,-2000.0,0.00018859,3]
[322847571,1713402631725,-492.31,0.00018872,2]
[322847572,1713402631735,-467.16,0.00018886,2]
[322847573,1713402631744,-656.01283166,0.00018937,2]
[322847574,1713402631755,-280.56667432,0.00018937,2]
[322847575,1713402631815,-2798.57741772,0.00018937,2]
[322847580,1713402631935,-4630.4030763,0.00018937,2]
[322847581,1713402631944,-532.84,0.00018954,2]
[322847582,1713402631954,-1000.0,0.00019038,2]
[322847583,1713402631963,-1000.0,0.0001919,2]
[322847584,1713402631972,-177.71,0.00019269,2]
[322847585,1713402631982,-3013.0,0.000194,2]
[322847586,1713402631991,-299.99,0.000194,7]
[322847587,1713402632000,-1668.0,0.000195,2]
[322847588,1713402632010,-700.0,0.000196,7]
[322847589,1713402632019,-1500.0,0.000197,7]
[322847590,1713402632029,-632.59040485,0.0001979,2]
[322847606,1713402637555,-771.65526251,0.0001979,2]
[322847607,1713402637566,-883.71798264,0.0001979,2]
[322847608,1713402637575,-2200.0,0.000198,7]
[322847609,1713402637586,-500.0,0.00019838,2]
[322847610,1713402637596,-154.98194736,0.00019897,2]
[322847611,1713402637605,-312.27117888,0.00019897,2]
[322847612,1713402637615,-754.37085141,0.00019897,2]
[322847613,1713402637626,-154.45931987,0.000199,2]
[322847614,1713402637636,-3000.0,0.000199,7]
[322847615,1713402637648,-426.70228372,0.00019987,2]
[322847616,1713402637659,-23019.12238634,0.0001999,2]
[322847617,1713402637670,-3135.29369272,0.0001999,2]
[322847618,1713402637744,-1230.78,0.0001999,2]
[322847619,1713402637793,-1715.41192055,0.0001999,2]
[322847656,1713402639517,-10899.39200039,0.0001999,2]
[322847658,1713402639526,-3869.82317102,0.00019992,2]
[322847660,1713402639537,-30969.9984252,0.00019994,2]
[322847661,1713402639547,-1885.7677566,0.00019994,2]
[322847662,1713402639556,-594.8964631,0.00019994,2]
[322847663,1713402639566,-750.9041734,0.00019994,2]
[322847664,1713402639575,-5911.3094135,0.00019994,2]
[322847665,1713402639585,-621.5756773,0.00019994,2]
[322847666,1713402639595,-8758.1927424,0.00019994,2]
[322847667,1713402639603,-1858.334704,0.00019994,2]
[322847668,1713402639613,-273.37028023,0.00019995,2]
[322847669,1713402639622,-500.0,0.00019995,2]
[322847670,1713402639631,-204.7090955,0.00019995,2]
[322847671,1713402639641,-500.0,0.00019995,2]
[322847672,1713402639650,-500.0,0.00019995,2]
[322847673,1713402639659,-446473.91010893,0.00019996,2]
[322847674,1713402639669,-909.62175321,0.00019997,2]
[322847675,1713402639678,-206.9318143,0.00019997,2]
[322847676,1713402639687,-5839.42781353,0.00019997,2]
[322847677,1713402639696,-155.0,0.00019997,2]
[322847678,1713402639706,-459.82395162,0.00019997,7]
[322847679,1713402639715,-305.5975802,0.00019998,2]
[322847680,1713402639724,-500.0,0.00019998,2]
[322847681,1713402639734,-500.0,0.00019998,2]
[322847682,1713402639743,-160.91122999,0.00019999,2]
[322847683,1713402639753,-522416.58328434,0.00019999,2]
[322847684,1713402639762,-201.01695,0.00019999,2]
[322847685,1713402639771,-151.0,0.00019999,2]
[322847686,1713402639784,-151.469559,0.00019999,2]
[322847687,1713402639793,-152.219475,0.00019999,2]
[322847688,1713402639803,-151.0,0.00019999,2]
[322847689,1713402639813,-151.0,0.00019999,2]
[322847690,1713402639822,-151.0,0.00019999,2]
[322847691,1713402639832,-151.0,0.00019999,2]
[322847692,1713402639842,-151.0,0.00019999,2]
[322847693,1713402639852,-151.0,0.00019999,2]
[322847694,1713402639861,-151.0,0.00019999,2]
[322847695,1713402639870,-151.0,0.00019999,2]
[322847696,1713402639879,-151.0,0.00019999,2]
[322847697,1713402639889,-265.301218,0.00019999,2]
[322847698,1713402639899,-151.0,0.00019999,2]
[322847699,1713402639908,-151.0,0.00019999,2]
[322847700,1713402639918,-151.0,0.00019999,2]
[322847701,1713402639928,-151.0,0.00019999,2]
[322847702,1713402639937,-151.0,0.00019999,2]
[322847703,1713402639948,-151.0,0.00019999,2]
[322847704,1713402639957,-151.0,0.00019999,2]
[322847705,1713402639966,-151.0,0.00019999,2]
[322847706,1713402639976,-151.0,0.00019999,2]
[322847707,1713402639985,-151.0,0.00019999,2]
[322847708,1713402639994,-212.055678,0.00019999,2]
[322847709,1713402640004,-212.055678,0.00019999,2]
[322847710,1713402640013,-151.0,0.00019999,2]
[322847711,1713402640022,-151.0,0.00019999,2]
[322847712,1713402640034,-151.0,0.00019999,2]
[322847713,1713402640043,-151.0,0.00019999,2]
[322847714,1713402640052,-151.0,0.00019999,2]
[322847715,1713402640062,-647.577949,0.00019999,2]
[322847716,1713402640071,-647.577949,0.00019999,2]
[322847717,1713402640080,-151.0,0.00019999,2]
[322847718,1713402640089,-151.0,0.00019999,2]
[322847719,1713402640098,-151.0,0.00019999,2]
[322847720,1713402640107,-151.0,0.00019999,2]
[322847721,1713402640116,-532.478645,0.00019999,2]
[322847722,1713402640125,-532.478645,0.00019999,2]
[322847723,1713402640134,-151.0,0.00019999,2]
[322847724,1713402640143,-151.0,0.00019999,2]
[322847725,1713402640153,-151.0,0.00019999,2]
[322847726,1713402640162,-151.0,0.00019999,2]
[322847727,1713402640171,-151.0,0.00019999,2]
[322847728,1713402640180,-151.0,0.00019999,2]
[322847729,1713402640189,-151.0,0.00019999,2]
[322847730,1713402640198,-192.398567,0.00019999,2]
[322847731,1713402640207,-151.0,0.00019999,2]
[322847732,1713402640217,-192.398567,0.00019999,2]
[322847733,1713402640226,-152.107251,0.00019999,2]
[322847734,1713402640235,-1667.260497,0.00019999,2]
[322847735,1713402640244,-151.0,0.00019999,2]
[322847736,1713402640253,-1667.260497,0.00019999,2]
[322847737,1713402640262,-151.0,0.00019999,2]
[322847738,1713402640272,-151.0,0.00019999,2]
[322847739,1713402640282,-294.583452,0.00019999,2]
[322847740,1713402640291,-294.583452,0.00019999,2]
[322847741,1713402640301,-151.0,0.00019999,2]
[322847742,1713402640310,-151.0,0.00019999,2]
[322847743,1713402640318,-151.0,0.00019999,2]
[322847744,1713402640328,-151.0,0.00019999,2]
[322847745,1713402640338,-248.01312,0.00019999,2]
[322847746,1713402640347,-248.01312,0.00019999,2]
[322847747,1713402640357,-151.0,0.00019999,2]
[322847748,1713402640367,-151.0,0.00019999,2]
[322847749,1713402640376,-151.0,0.00019999,2]
[322847750,1713402640385,-213.269198,0.00019999,2]
[322847751,1713402640394,-213.269198,0.00019999,2]
[322847752,1713402640402,-182.67832,0.00019999,2]
[322847753,1713402640411,-182.67832,0.00019999,2]
[322847754,1713402640420,-500.0,0.00019999,2]
[322847755,1713402640429,-500.0,0.00019999,2]
[322847756,1713402640438,-500.0,0.00019999,2]
[322847757,1713402640447,-500.0,0.00019999,2]
[322847758,1713402640456,-500.0,0.00019999,2]
[322847759,1713402640465,-151.0,0.00019999,2]
[322847760,1713402640474,-173.761411,0.00019999,2]
[322847761,1713402640483,-173.761411,0.00019999,2]
[322847762,1713402640493,-189.938224,0.00019999,2]
[322847763,1713402640502,-189.938224,0.00019999,2]
[322847764,1713402640513,-1077.421968,0.00019999,2]
[322847765,1713402640522,-1077.421968,0.00019999,2]
[322847766,1713402640534,-151.0,0.00019999,2]
[322847767,1713402640544,-191.012722,0.00019999,2]
[322847768,1713402640554,-151.0,0.00019999,2]
[322847769,1713402640563,-171.35312,0.00019999,2]
[322847770,1713402640573,-187.562202,0.00019999,2]
[322847771,1713402640582,-187.562202,0.00019999,2]
[322847772,1713402640592,-151.0,0.00019999,2]
[322847773,1713402640601,-151.0,0.00019999,2]
[322847774,1713402640610,-151.0,0.00019999,2]
[322847775,1713402640619,-463131.04201215,0.0002,5]
[322847776,1713402640633,-1566.72272541,0.0002,5]
[322847777,1713402640644,-1331.59681142,0.0002,5]
[322847785,1713402642739,-62.8973005,0.00019999,2]
[322847786,1713402642786,-88.1026995,0.00019999,2]
[322847787,1713402642796,-515.8973005,0.0002,5]
[322847823,1713402643500,-485370.07880909,0.0002,5]
[322847825,1713402643510,-19479.2368934,0.0002,2]
[322847827,1713402643519,-2466.49,0.0002,2]
[322847829,1713402643532,-155.0,0.0002,4]
[322847831,1713402643541,-3663.33,0.0002,2]
[322847833,1713402643550,-5000.0,0.0002,2]
[322847835,1713402643559,-500.0,0.0002,2]
[322847837,1713402643568,-500.0,0.0002,2]
[322847839,1713402643577,-150.0,0.0002,2]
[322847841,1713402643587,-370.0,0.0002,2]
[322847843,1713402643596,-188.0,0.0002,2]
[322847845,1713402643605,-641.27305155,0.0002,2]
[322847847,1713402643613,-859.35539064,0.0002,2]
[322847849,1713402643622,-186.07241725,0.0002,2]
[322847851,1713402643631,-6219.13910648,0.0002,2]
[322847853,1713402643640,-2000.69895647,0.0002,2]
[322847855,1713402643649,-20000.0,0.0002,2]
[322847857,1713402643657,-1000.0,0.0002,2]
[322847859,1713402643667,-3500.0,0.0002,2]
[322847861,1713402643676,-1033.6,0.0002,2]
[322847863,1713402643685,-243.8685375,0.0002,2]
[322847865,1713402643696,-152.761423,0.0002,2]
[322847867,1713402643706,-151.0,0.0002,2]
[322847869,1713402643717,-287.14,0.0002,2]
[322847871,1713402643726,-287.14,0.0002,2]
[322847873,1713402643735,-287.14,0.0002,2]
[322847875,1713402643743,-287.14,0.0002,2]
[322847877,1713402643753,-287.14,0.0002,2]
[322847878,1713402643762,-287.14,0.0002,2]
[322847879,1713402643770,-287.14,0.0002,2]
[322847880,1713402643780,-287.14,0.0002,2]
[322847881,1713402643789,-151.0,0.0002,2]
[322847882,1713402643798,-151.0,0.0002,2]
[322847883,1713402643808,-250.944684,0.0002,2]
[322847884,1713402643817,-183.754738,0.0002,2]
[322847885,1713402643827,-151.0,0.0002,2]
[322847886,1713402643836,-151.0,0.0002,2]
[322847887,1713402643845,-151.0,0.0002,2]
[322847888,1713402643854,-151.0,0.0002,2]
[322847889,1713402643863,-151.0,0.0002,2]
[322847890,1713402643872,-151.0,0.0002,2]
[322847891,1713402643882,-151.0,0.0002,2]
[322847892,1713402643891,-151.0,0.0002,2]
[322847893,1713402643900,-151.0,0.0002,2]
[322847894,1713402643909,-151.0,0.0002,2]
[322847895,1713402643918,-151.0,0.0002,2]
[322847896,1713402643928,-222.513314,0.0002,2]
[322847897,1713402643937,-151.0,0.0002,2]
[322847898,1713402643946,-151.0,0.0002,2]
[322847899,1713402643955,-251.264887,0.0002,2]
[322847900,1713402643964,-151.0,0.0002,2]
[322847901,1713402643974,-151.0,0.0002,2]
[322847902,1713402643983,-242.951128,0.0002,2]
[322847903,1713402643992,-151.0,0.0002,2]
[322847904,1713402644001,-151.0,0.0002,2]
[322847905,1713402644010,-151.0,0.0002,2]
[322847906,1713402644019,-151.0,0.0002,2]
[322847907,1713402644029,-151.0,0.0002,2]
[322847908,1713402644042,-151.0,0.0002,2]
[322847909,1713402644051,-151.0,0.0002,2]
[322847910,1713402644061,-151.0,0.0002,2]
[322847911,1713402644070,-151.0,0.0002,2]
[322847912,1713402644080,-151.0,0.0002,2]
[322847913,1713402644089,-151.0,0.0002,2]
[322847914,1713402644099,-151.0,0.0002,2]
[322847915,1713402644107,-151.0,0.0002,2]
[322847916,1713402644116,-151.0,0.0002,2]
[322847917,1713402644125,-151.0,0.0002,2]
[322847918,1713402644134,-151.0,0.0002,2]
[322847919,1713402644143,-151.0,0.0002,2]
[322847920,1713402644152,-151.0,0.0002,2]
[322847921,1713402644161,-151.0,0.0002,2]
[322847922,1713402644170,-151.0,0.0002,2]
[322847923,1713402644179,-151.0,0.0002,2]
[322847924,1713402644188,-151.0,0.0002,2]
[322847925,1713402644198,-151.0,0.0002,2]
[322847926,1713402644207,-151.0,0.0002,2]
[322847927,1713402644217,-151.0,0.0002,2]
[322847928,1713402644228,-294.725294,0.0002,2]
[322847929,1713402644238,-212.055678,0.0002,2]
[322847930,1713402644247,-212.055678,0.0002,2]
[322847931,1713402644256,-212.055678,0.0002,2]
[322847932,1713402644266,-212.055678,0.0002,2]
[322847933,1713402644275,-212.055678,0.0002,2]
[322847934,1713402644289,-212.055678,0.0002,2]
[322847935,1713402644298,-212.055678,0.0002,2]
[322847936,1713402644307,-212.055678,0.0002,2]
[322847937,1713402644316,-151.0,0.0002,2]
[322847938,1713402644325,-151.0,0.0002,2]
[322847939,1713402644333,-151.0,0.0002,2]
[322847940,1713402644342,-151.0,0.0002,2]
[322847941,1713402644351,-151.0,0.0002,2]
[322847942,1713402644360,-151.0,0.0002,2]
[322847943,1713402644369,-151.0,0.0002,2]
[322847944,1713402644378,-151.0,0.0002,2]
[322847945,1713402644387,-151.0,0.0002,2]
[322847946,1713402644396,-151.0,0.0002,2]
[322847947,1713402644405,-151.0,0.0002,2]
[322847948,1713402644415,-151.0,0.0002,2]
[322847949,1713402644424,-210.932858,0.0002,2]
[322847950,1713402644433,-647.577949,0.0002,2]
[322847951,1713402644442,-647.577949,0.0002,2]
[322847952,1713402644452,-647.577949,0.0002,2]
[322847953,1713402644460,-647.577949,0.0002,2]
[322847954,1713402644470,-647.577949,0.0002,2]
[322847955,1713402644479,-647.577949,0.0002,2]
[322847956,1713402644488,-647.577949,0.0002,2]
[322847957,1713402644497,-647.577949,0.0002,2]
[322847958,1713402644506,-164.647188,0.0002,2]
[322847959,1713402644518,-151.0,0.0002,2]
[322847960,1713402644527,-151.0,0.0002,2]
[322847961,1713402644540,-151.0,0.0002,2]
[322847962,1713402644550,-151.0,0.0002,2]
[322847963,1713402644559,-532.478645,0.0002,2]
[322847964,1713402644569,-532.478645,0.0002,2]
[322847965,1713402644578,-532.478645,0.0002,2]
[322847966,1713402644588,-532.478645,0.0002,2]
[322847967,1713402644741,-532.478645,0.0002,2]
[322847968,1713402644785,-532.478645,0.0002,2]
[322847969,1713402644829,-532.478645,0.0002,2]
[322847970,1713402644839,-532.478645,0.0002,2]
[322847971,1713402644849,-151.0,0.0002,2]
[322847972,1713402644858,-151.0,0.0002,2]
[322847973,1713402644867,-151.0,0.0002,2]
[322847974,1713402644877,-151.0,0.0002,2]
[322847975,1713402644886,-151.0,0.0002,2]
[322847976,1713402644895,-151.0,0.0002,2]
[322847977,1713402644905,-151.0,0.0002,2]
[322847978,1713402644916,-151.0,0.0002,2]
[322847979,1713402644925,-151.0,0.0002,2]
[322847980,1713402644935,-151.0,0.0002,2]
[322847981,1713402644944,-151.0,0.0002,2]
[322847982,1713402644953,-151.0,0.0002,2]
[322847983,1713402644962,-205.446193,0.0002,2]
[322847984,1713402644972,-150.0,0.0002,2]
[322847985,1713402644981,-151.0,0.0002,2]
[322847986,1713402644989,-151.0,0.0002,2]
[322847987,1713402644999,-151.0,0.0002,2]
[322847988,1713402645008,-151.0,0.0002,2]
[322847989,1713402645017,-151.0,0.0002,2]
[322847990,1713402645027,-151.0,0.0002,2]
[322847991,1713402645040,-151.0,0.0002,2]
[322847992,1713402645050,-151.0,0.0002,2]
[322847993,1713402645059,-192.398567,0.0002,2]
[322847994,1713402645068,-192.398567,0.0002,2]
[322847995,1713402645078,-192.398567,0.0002,2]
[322847996,1713402645087,-151.0,0.0002,2]
[322847997,1713402645096,-192.398567,0.0002,2]
[322847998,1713402645106,-151.0,0.0002,2]
[322847999,1713402645115,-151.0,0.0002,2]
[322848000,1713402645124,-151.0,0.0002,2]
[322848001,1713402645133,-192.398567,0.0002,2]
[322848002,1713402645142,-192.398567,0.0002,2]
[322848003,1713402645152,-192.398567,0.0002,2]
[322848004,1713402645161,-192.398567,0.0002,2]
[322848005,1713402645170,-1667.260497,0.0002,2]
[322848006,1713402645179,-1667.260497,0.0002,2]
[322848007,1713402645188,-1667.260497,0.0002,2]
[322848008,1713402645197,-1667.260497,0.0002,2]
[322848009,1713402645206,-1667.260497,0.0002,2]
[322848010,1713402645215,-1667.260497,0.0002,2]
[322848011,1713402645224,-1667.260497,0.0002,2]